[Event "12th Tamil Nadu Circuit-IM 2024"]
[Site "Chennai"]
[Date "2024.01.09"]
[Round "1.1"]
[White "Prasannaa.s"]
[Black "Md Imran"]
[Result "1-0"]
[ECO "A22"]
[WhiteElo "2213"]
[BlackElo "2222"]
[Annotator "TA"]
[PlyCount "119"]
[EventDate "2024.01.09"]
[EventType "tourn"]
[EventCountry "IND"]
[SourceTitle "playchess.com"]
[Source "ChessBase"]
[SourceQuality "1"]
[TimeControl "5400+30"]

{[%evp 9,119,-4,0,0,0,0,0,-7,-6,0,14,23,30,36,31,12,36,41,26,12,10,6,18,7,12,0,0,0,0,0,0,0,8,-9,-9,-9,-8,-11,0,-10,-10,-5,-7,-2,-9,-33,-20,-20,-18,-31,0,0,0,0,8,4,40,38,87,90,121,121,89,31,31,3,3,0,0,0,0,0,0,0,0,0,0,0,0,0,0,0,1429,11574,12839,12838,12838,12839,12847,12847,12850,12850,27999,27999,27999,27999,27999,27999,27999,27999,27999,27999,27999,27999,27999,27999,27999,27999,27999,27999,27999,27999]} 1. a3 {[%emt 0:01:37]} e5 {[%emt 0:01:23][%cal Be7e5,Be5e4][%mdl 32]} 2. c4 {[%emt 0:00:08]} Nf6 {[%emt 0:00:15]} 3. Nc3 {[%emt 0:00:08]} c6 {[%emt 0:00:29]} 4. Nf3 {[%emt 0:00:37]} e4 {[%emt 0:00:20]} 5. Nd4 {[%emt 0:00:11]} Bc5 {[%emt 0:00:33][%cal Bf8c5,Bc5b6,Bb6c7,Bc7d6][%mdl 32]} 6. Nb3 {[%emt 0:01:05] A22: English Opening: 1...e5 2 Nc3 Nf6.} Bb6 {[%emt 0:00:25]} 7. c5 {[%emt 0:01:57]} Bc7 {[%emt 0:00:23]} 8. d4 {[%emt 0:00:56] The position is equal.} exd3 {[%emt 0:05:22]} 9. Qxd3 {[%emt 0:00:40] [#]} (9. e4 {is more complex.} O-O 10. f4 d5 11. cxd6 Qxd6 12. e5) 9... d5 $146 {[%emt 0:00:50]} ({Predecessor:} 9... O-O 10. Bg5 h6 11. Bh4 Re8 12. Ne4 Rxe4 13. Bxf6 Qe8 14. Bc3 b6 15. Qc2 Na6 16. cxb6 axb6 {½-½ Van Doorn,J (2209)-Legemaat,G (2371) NED-ch KE10 email 2006}) 10. cxd6 $1 {[%emt 0:05:21]} Qxd6 {[%emt 0:00:27]} 11. Qxd6 {[%emt 0:00:28]} Bxd6 {[%emt 0:00:02]} 12. Bg5 {[%emt 0:00:11]} h6 {[%emt 0:15:59]} 13. Bxf6 {[%emt 0:02:12]} gxf6 {[%emt 0:00:02]} 14. g3 {[%emt 0:01:28]} Be6 {[%emt 0:00:45]} 15. Nd4 {[%emt 0:00:32]} Be5 {[%emt 0:00:12]} 16. O-O-O {[%emt 0:01:16]} Nd7 {[%emt 0:04:12]} 17. Nxe6 {[%emt 0:10:04]} fxe6 {[%emt 0:00:11]} 18. Kc2 {[%emt 0:00:17]} Ke7 {[%emt 0:00:41]} 19. Bg2 {[%emt 0:00:27]} Rad8 {[%emt 0:01:40]} 20. Na4 {[%emt 0:06:58]} Rhg8 {[%emt 0:02:56]} 21. Bf3 {[%emt 0:01:37]} a5 {[%emt 0:03:42]} 22. e3 {[%emt 0:11:45]} b5 {[%emt 0:06:03]} 23. Nc3 {[%emt 0:00:24]} Nb6 {[%emt 0:04:39]} 24. Be2 {[%emt 0:00:31]} f5 {[%emt 0:05:59]} 25. Rxd8 {[%emt 0:02:02]} Rxd8 {[%emt 0:00:09]} 26. Rd1 {[%emt 0:00:14]} Rb8 {[%emt 0:05:15]} 27. Rd2 {[%emt 0:01:37]} b4 {[%emt 0:04:55]} 28. axb4 {[%emt 0:00:57]} axb4 {[%emt 0:00:14]} 29. Nd1 {[%emt 0:00:16]} c5 {[%emt 0:00:25]} 30. Kb3 {[%emt 0:02:47]} Ra8 {[%emt 0:03:52]} 31. f4 {[%emt 0:02:48]} Bd6 {[%emt 0:03:04]} 32. Nf2 {[%emt 0:03:00]} Rc8 {[%emt 0:05:43]} 33. Bc4 {[%emt 0:01:24]} Rd8 {[%emt 0:02:12]} (33... e5 $14) 34. e4 $16 {[%emt 0:01:17]} Bc7 {[%emt 0:04:12]} 35. Rxd8 {[%emt 0:00:12]} Bxd8 {[%emt 0:00:02]} 36. exf5 {[%emt 0:00:10]} ({White should try} 36. e5 $16) 36... exf5 {[%emt 0:00:03][%mdl 4096] Endgame KBN-KBN} 37. Nd3 {[%emt 0:04:23]} Kd6 {[%emt 0:01:54]} 38. Ne5 {[%emt 0:00:05] Black must now prevent Nf7+.} Bf6 {[%emt 0:00:40]} 39. Nf7+ {[%emt 0:00:14]} Ke7 {[%emt 0:00:04] aiming for ...Nxc4.} 40. Nxh6 {[%emt 0:03:53] Hoping for Ng8+.} Nxc4 {[%emt 0:00:02]} 41. Kxc4 $11 {[%emt 0:02:35] KB-KN} Ke6 {[%emt 0:00:01]} 42. g4 {[%emt 0:05:48]} Bxb2 {[%emt 0:01:03]} 43. Nxf5 {[%emt 0:00:38][%cal Of5e3] Threatens to win with Ne3!} Bc1 {[%emt 0:00:07] Against Ne3} 44. Ng7+ {[%emt 0:01:25]} Kf6 {[%emt 0:00:38]} 45. Nh5+ {[%emt 0:00:02]} Kg6 $2 {[%emt 0:00:06][%mdl 8192] White now steadily converts the win.} (45... Ke6 $11) 46. h4 $18 {[%emt 0:00:44]} (46. Kxc5 $2 b3 47. f5+ Kf7 $19) 46... Kh6 {[%emt 0:03:22]} 47. f5 {[%emt 0:01:34]} (47. Kxc5 $2 b3 48. Nf6 b2 $19) 47... Bb2 {[%emt 0:00:49]} 48. Ng3 $1 {[%emt 0:10:13]} (48. Kxc5 b3 49. Kb4 Bf6 50. g5+ (50. Nxf6 $2 b2 $19) (50. Kxb3 Bxh4 51. f6 Kg6 $11) 50... Kxh5 51. Kxb3 Bxg5 $11) 48... Bf6 {[%emt 0:00:11]} 49. g5+ {[%emt 0:00:38]} (49. Kxc5 Bxh4 50. Kxb4 Bxg3 $11) 49... Bxg5 {[%emt 0:00:06]} 50. hxg5+ {[%emt 0:00:04]} Kxg5 {[%emt 0:00:02] [#] KN-KPP} 51. Kd5 $1 {[%emt 0:00:16] White mates.} ({Stronger than} 51. Kxc5 b3 $11) 51... Kf6 {[%emt 0:00:20] [#]} 52. Ke4 $1 {[%emt 0:00:18]} ({Weaker is} 52. Kxc5 b3 $11) (52. Kc4 Ke5 $11) 52... b3 {[%emt 0:02:24]} 53. Ne2 {[%emt 0:01:13]} ({Not} 53. Nh5+ $2 Kg5 54. Ng7 b2 55. Ne6+ Kf6 $19) 53... b2 {[%emt 0:00:02]} 54. Nc3 {[%emt 0:00:05]} Kf7 {[%emt 0:00:08]} 55. Ke5 {[%emt 0:00:02]} Ke7 {[%emt 0:00:02]} 56. f6+ {[%emt 0:00:19][%cal Bf5f6,Bf6f7][%mdl 32]} Kf7 {[%emt 0:00:03]} 57. Kf5 {[%emt 0:00:08]} Kf8 {[%emt 0:00:08]} 58. Ke6 {[%emt 0:00:07]} Ke8 {[%emt 0:00:10]} 59. f7+ {[%emt 0:00:06]} Kf8 {[%emt 0:00:05]} 60. Nb1 {[%emt 0:02:17] Weighted Error Value: White=0.05 (flawless) /Black=0.18 (very precise)} 1-0

[Event "12th Tamil Nadu Circuit-IM 2024"]
[Site "Chennai"]
[Date "2024.01.09"]
[Round "1.2"]
[White "Mohamed Anees M"]
[Black "Mamombe, Kudzanai"]
[Result "1-0"]
[ECO "C97"]
[WhiteElo "2319"]
[BlackElo "1797"]
[Annotator "TA"]
[PlyCount "105"]
[EventDate "2024.01.09"]
[EventType "tourn"]
[EventCountry "IND"]
[SourceTitle "playchess.com"]
[Source "ChessBase"]
[SourceQuality "1"]
[TimeControl "5400+30"]

{[%evp 24,105,77,75,87,77,77,42,81,66,112,108,116,116,110,108,131,129,128,125,129,131,133,116,134,116,123,125,218,204,196,202,408,399,395,352,347,347,408,406,396,347,347,347,347,347,347,347,342,322,309,226,226,220,211,192,425,408,395,381,430,419,483,365,951,941,893,888,926,922,822,795,1461,1135,1140,1140,1098,911,893,835,1054,636,608,577]} 1. e4 {[%emt 0:00:13]} e5 {[%emt 0:00:21]} 2. Nf3 {[%emt 0:00:05]} Nc6 {[%emt 0:00:06]} 3. Bb5 {[%emt 0:00:19]} a6 {[%emt 0:00:11]} 4. Ba4 {[%emt 0:00:05]} Nf6 {[%emt 0:01:12]} 5. O-O {[%emt 0:00:08]} b5 {[%emt 0:00:25]} 6. Bb3 {[%emt 0:00:05]} Be7 {[%emt 0:01:20]} 7. Re1 {[%emt 0:00:08]} d6 {[%emt 0:00:21]} 8. c3 {[%emt 0:00:08]} O-O {[%emt 0:00:24]} 9. h3 {[%emt 0:00:14]} Na5 {[%emt 0:00:28]} 10. Bc2 {[%emt 0:00:07]} c5 {[%emt 0:00:06]} 11. d4 {[%emt 0:00:04]} Qc7 {[%emt 0:00:18]} 12. d5 {[%emt 0:00:30]} c4 {[%emt 0:03:01]} 13. b4 {[%emt 0:00:27]} Nb7 {[%emt 0:05:41] C97: Closed Ruy Lopez: Chigorin Defence: 11 d4 Qc7, sidelines.} 14. a4 {[%emt 0:00:07] [#] Strongly threatening axb5.} Bd7 {[%emt 0:00:18]} 15. a5 {[%emt 0:00:34] [#]} Rac8 $146 {[%emt 0:01:44] White is slightly better.} ({Predecessor:} 15... Ne8 16. g4 g6 17. Bh6 Ng7 18. Nbd2 Qc8 19. Kh2 Nd8 20. Rg1 f6 {½-½ Alekseev,E (2604)-Harikrishna,P (2612) Wch U20 43rd 2004 (6)}) 16. Nbd2 {[%emt 0:06:22][%cal Bb1d2,Bd2f1,Bf1g3][%mdl 32] White stays focused until the end.} h6 {[%emt 0:02:00]} (16... Ne8 $14 {is superior.}) 17. Nf1 $16 {[%emt 0:01:56]} Rfe8 {[%emt 0:00:10]} 18. Ng3 {[%emt 0:00:23]} Nh7 {[%emt 0:03:53]} 19. Be3 {[%emt 0:08:23]} Nd8 {[%emt 0:03:47]} 20. Qd2 {[%emt 0:03:28]} Rb8 {[%emt 0:18:23]} 21. Rf1 {[%emt 0:06:52]} Rb7 {[%emt 0:00:36]} 22. Rae1 {[%emt 0:05:24]} Qc8 {[%emt 0:05:40]} 23. Bd1 {[%emt 0:01:49] White is more active.} Rf8 {[%emt 0:01:18]} 24. Qc1 {[%emt 0:08:02]} Re8 {[%emt 0:02:39]} 25. Nh2 {[%emt 0:03:12]} Bf8 {[%emt 0:02:29]} (25... Bh4 $16) 26. f4 $18 {[%emt 0:05:37]} exf4 {[%emt 0:01:35]} 27. Bxf4 {[%emt 0:00:04]} ({Much less strong is} 27. Rxf4 Be7 28. Rff1 Bh4 $16) 27... g5 $2 {[%emt 0:01:04]} (27... Qa8 28. Nf3 Qb8) 28. Be3 {[%emt 0:01:17]} Bg7 {[%emt 0:05:13]} 29. Ng4 {[%emt 0:01:57]} Bxg4 {[%emt 0:22:17]} 30. Bxg4 {[%emt 0:00:09]} ({Weaker is} 30. hxg4 Qd7 31. Nf5 f6 $18) 30... Qc7 {[%emt 0:01:32]} 31. Nf5 {[%emt 0:08:53]} f6 {[%emt 0:06:22]} 32. Bb6 {[%emt 0:07:15]} Qb8 {[%emt 0:01:08]} 33. Bh5 {[%emt 0:00:19]} Rf8 {[%emt 0:01:27] Black is weak on the light squares} 34. Qd1 {[%emt 0:04:23]} Nf7 {[%emt 0:02:49]} 35. Bxf7+ {[%emt 0:00:24]} Rbxf7 {[%emt 0:01:06]} 36. Qh5 {[%emt 0:00:39]} Rd7 {[%emt 0:02:46]} 37. Nxh6+ {[%emt 0:02:23]} Bxh6 {[%emt 0:01:11]} 38. Qxh6 {[%emt 0:00:03]} Qe8 {[%emt 0:00:28]} 39. Bd4 {[%emt 0:03:08]} Qe7 {[%emt 0:02:31]} (39... Rg7 40. Rf5 (40. Bxf6 $2 Rg6 $17) 40... Qg6 41. Qxg6 Rxg6) 40. Qg6+ {[%emt 0:02:48]} Qg7 {[%emt 0:00:12]} 41. Qf5 {[%emt 0:00:04]} Re7 {[%emt 0:00:33]} 42. Re3 {[%emt 0:01:07]} Qf7 {[%emt 0:00:37]} 43. Rg3 {[%emt 0:01:30]} Kh8 $2 {[%emt 0:01:14]} (43... Qh5 44. Qf4 Rd7) 44. Rxg5 {[%emt 0:03:50] White is clearly winning.} Nxg5 {[%emt 0:00:16]} 45. Qxg5 {[%emt 0:00:03][%cal Rf1f6]} Qg7 {[%emt 0:01:00]} 46. Bxf6 {[%emt 0:00:15]} Rxf6 {[%emt 0:00:08]} 47. Qxf6 {[%emt 0:00:04]} Rxe4 {[%emt 0:00:22]} 48. Qxd6 {[%emt 0:00:11] KQR-KQR} Re2 {[%emt 0:00:57]} 49. Qf8+ {[%emt 0:00:17]} (49. Qxa6 $2 Qxg2#) 49... Qxf8 {[%emt 0:00:09]} 50. Rxf8+ {[%emt 0:00:04]} Kg7 {[%emt 0:00:14]} 51. Ra8 {[%emt 0:00:19]} Re3 {[%emt 0:00:24]} 52. Rxa6 {[%emt 0:00:36] [#] Hoping for d6.} Rxc3 {[%emt 0:00:07]} 53. Rb6 {[%emt 0:00:05] Weighted Error Value: White=0.25 (precise) /Black=0.31} 1-0

[Event "12th Tamil Nadu Circuit-IM 2024"]
[Site "Chennai"]
[Date "2024.01.09"]
[Round "1.3"]
[White "Pradeep Kumar R A"]
[Black "Raghav V"]
[Result "0-1"]
[ECO "E17"]
[WhiteElo "2189"]
[BlackElo "2150"]
[Annotator "TA"]
[PlyCount "214"]
[EventDate "2024.01.09"]
[EventType "tourn"]
[EventCountry "IND"]
[SourceTitle "playchess.com"]
[Source "ChessBase"]
[SourceQuality "1"]
[TimeControl "5400+30"]

{[%evp 19,214,0,21,7,2,0,6,-16,0,0,0,0,0,0,0,0,0,-5,0,0,0,0,0,-8,0,-17,-22,-25,53,0,0,0,0,0,19,19,19,19,19,19,22,11,25,11,11,11,11,11,11,11,11,11,11,11,11,11,11,11,31,36,28,25,25,0,7,0,26,29,43,26,26,26,27,26,26,8,8,8,8,8,8,8,8,8,8,8,8,8,8,8,8,8,8,8,8,8,8,8,8,8,8,8,8,8,31,8,8,8,8,8,8,8,8,8,8,8,8,8,8,8,8,8,8,8,8,8,8,8,8,8,8,8,8,8,8,8,8,8,8,8,8,8,8,8,8,8,8,8,8,8,8,8,8,8,8,8,8,8,8,8,8,8,8,8,8,8,8,8,8,8,8,8,8,8,8,8,8,8,8,-29981,-29982,-29983,-29983,-29985,-29986,-29986,-29987,-29987,-29987,-29987,-29988,-29994,-29988,-29984,-29985,-29987,-29986]} 1. Nf3 {[%emt 0:00:14]} Nf6 {[%emt 0:00:12]} 2. c4 {[%emt 0:00:20]} e6 {[%emt 0:00:08]} 3. g3 {[%emt 0:00:05]} b6 {[%emt 0:00:57]} 4. Bg2 {[%emt 0:00:06]} Bb7 {[%emt 0:00:07]} 5. O-O {[%emt 0:00:20]} Be7 {[%emt 0:00:11]} 6. d4 {[%emt 0:03:56]} O-O {[%emt 0:00:29]} 7. Re1 {[%emt 0:00:05]} d5 {[%emt 0:02:39]} 8. Ne5 {[%emt 0:00:54]} Nbd7 {[%emt 0:05:29]} 9. cxd5 {[%emt 0:00:52]} exd5 {[%emt 0:07:25]} 10. Nc3 {[%emt 0:01:18]} c5 {[%emt 0:03:07] [#]} 11. Nd3 $146 {[%emt 0:25:34] E17: Queen's Indian: 4 g3 Bb7 5 Bg2 Be7.} (11. Qa4 $5 {[%cal Re5d7]}) ({Predecessor:} 11. Be3 Nxe5 12. dxe5 Ne4 13. Nxe4 dxe4 14. Qa4 Qe8 15. Qxe8 Rfxe8 16. Rad1 Rad8 17. f4 f5 18. Kf2 Kf7 19. Rxd8 Rxd8 {½-½ Ftacnik,L (2455)-Votava,J (2462) AUT-chT 2324 2023 (3.3)}) 11... Ne4 {[%emt 0:21:40]} 12. dxc5 {[%emt 0:14:49]} Ndxc5 {[%emt 0:21:09]} 13. Bd2 {[%emt 0:10:31] The position is equal.} Nxd3 {[%emt 0:17:24]} 14. exd3 {[%emt 0:00:12]} Nxd2 {[%emt 0:00:07]} 15. Qxd2 {[%emt 0:00:31]} Bg5 {[%emt 0:01:45]} 16. Qd1 {[%emt 0:01:10]} Qd7 {[%emt 0:02:20]} 17. d4 {[%emt 0:03:36]} Bf6 {[%emt 0:01:58]} 18. Qd2 {[%emt 0:04:46]} Qf5 {[%emt 0:01:53]} 19. Rac1 {[%emt 0:07:30]} Rac8 {[%emt 0:02:38]} 20. b3 {[%emt 0:04:45]} Bg5 {[%emt 0:03:08]} 21. f4 {[%emt 0:00:13]} Bf6 {[%emt 0:00:04]} 22. h3 {[%emt 0:03:15]} g6 {[%emt 0:01:46]} 23. Kh2 {[%emt 0:01:01]} Bg7 {[%emt 0:03:07]} ({Better is} 23... Qd7 $11) 24. h4 {[%emt 0:02:37]} (24. Re7 $14 Bc6 25. Rxa7) 24... Qf6 $11 {[%emt 0:01:38]} 25. Bxd5 {[%emt 0:07:30]} Rxc3 {[%emt 0:00:55][%mdl 64] [#] Remove Defender} 26. Bxb7 {[%emt 0:00:04]} Rxc1 {[%emt 0:00:16]} 27. Rxc1 {[%emt 0:00:36]} Qxd4 {[%emt 0:00:55] Black is weak on the light squares} 28. Qxd4 {[%emt 0:00:07]} Bxd4 {[%emt 0:00:03][%mdl 4096] Endgame KRB-KRB} 29. Rc7 {[%emt 0:00:14]} a5 {[%emt 0:00:58]} 30. Bd5 {[%emt 0:00:30]} Bc5 {[%emt 0:00:24]} 31. Kg2 {[%emt 0:00:40]} Kg7 {[%emt 0:00:36]} 32. Kf3 {[%emt 0:00:10]} h5 {[%emt 0:00:26]} 33. Bc4 {[%emt 0:00:56]} Kf6 {[%emt 0:00:12]} 34. Rb7 {[%emt 0:01:10]} Kg7 {[%emt 0:00:30]} 35. Rd7 {[%emt 0:02:23]} Kf6 {[%emt 0:00:15]} 36. g4 {[%emt 0:00:54]} hxg4+ {[%emt 0:00:36]} 37. Kxg4 {[%emt 0:00:01]} Kg7 {[%emt 0:00:00]} 38. Rc7 {[%emt 0:01:46]} Bd4 {[%emt 0:01:11]} 39. f5 {[%emt 0:00:33]} Kf6 {[%emt 0:00:41]} 40. Rc6+ {[%emt 0:00:40]} Kg7 {[%emt 0:00:37]} 41. Kg5 {[%emt 0:01:24]} (41. Rd6 $5 {[%cal Rd6d4]} Bc5 42. f6+ Kh6 43. Rd7 $14) 41... Be3+ {[%emt 0:00:32]} 42. Kg4 {[%emt 0:00:05]} Bd4 {[%emt 0:00:22]} 43. Rd6 {[%emt 0:00:20]} Bf6 {[%emt 0:00:30]} 44. fxg6 {[%emt 0:01:19]} fxg6 {[%emt 0:00:20]} 45. Rxb6 {[%emt 0:00:12]} Rd8 {[%emt 0:00:33]} 46. Rb5 {[%emt 0:01:03]} a4 {[%emt 0:00:40]} 47. Bd5 {[%emt 0:00:43]} (47. bxa4 $2 {is the wrong capture.} Rd4+ 48. Kf3 Rxc4 $19) (47. h5 $5 {[%cal Rb5b7]}) 47... axb3 {[%emt 0:00:34]} 48. axb3 {[%emt 0:00:01]} Kh6 {[%emt 0:00:30]} 49. Kg3 {[%emt 0:01:47]} Be5+ {[%emt 0:00:19]} 50. Kf3 {[%emt 0:00:22]} Rf8+ {[%emt 0:00:31]} 51. Kg2 {[%emt 0:00:44]} Rf4 {[%emt 0:00:28]} 52. Bf3 {[%emt 0:00:16]} Bf6 {[%emt 0:00:38]} 53. h5 {[%emt 0:00:17]} gxh5 {[%emt 0:00:21]} 54. Rxh5+ {[%emt 0:00:39]} Kg6 {[%emt 0:00:12]} 55. Rb5 {[%emt 0:00:07]} Be7 {[%emt 0:00:18]} 56. Rb6+ {[%emt 0:00:22]} Kg7 {[%emt 0:00:48]} 57. Bd5 {[%emt 0:00:07]} Rd4 {[%emt 0:00:54]} 58. Bc4 $1 {[%emt 0:00:04]} Rd6 {[%emt 0:00:17]} 59. Rb7 {[%emt 0:00:14]} Kf6 {[%emt 0:00:13]} 60. Kf3 {[%emt 0:00:08]} Bd8 {[%emt 0:01:00]} 61. Ke4 {[%emt 0:00:20]} Bb6 {[%emt 0:00:25]} 62. Bd5 {[%emt 0:00:08]} Bg1 {[%emt 0:00:32]} 63. Rf7+ {[%emt 0:01:38]} Kg6 {[%emt 0:00:25]} 64. Rf8 {[%emt 0:00:48] And now Rg8+ would win.} Bc5 {[%emt 0:00:22]} 65. Rc8 {[%emt 0:00:08]} Bf2 {[%emt 0:00:35]} 66. Rg8+ {[%emt 0:00:04]} Kh7 {[%emt 0:00:15]} 67. Rg2 {[%emt 0:00:09]} Bc5 {[%emt 0:00:54]} 68. Ke5 {[%emt 0:00:17]} Rb6 {[%emt 0:00:25]} 69. Be6 {[%emt 0:00:27]} Bb4 {[%emt 0:00:32]} 70. Bc4 {[%emt 0:02:35]} Bc3+ {[%emt 0:00:37]} 71. Kd5 {[%emt 0:00:18]} Bb4 {[%emt 0:00:21]} 72. Bd3+ {[%emt 0:01:03]} Kh6 {[%emt 0:00:18]} 73. Kc4 {[%emt 0:00:30]} Be7 {[%emt 0:00:27]} 74. Bc2 {[%emt 0:00:27]} Kh5 {[%emt 0:00:50]} 75. Bd1+ {[%emt 0:00:24]} Kh6 {[%emt 0:00:14]} 76. Bf3 {[%emt 0:00:31]} Rb4+ {[%emt 0:00:08]} 77. Kc3 {[%emt 0:00:05]} Rb6 {[%emt 0:00:34]} 78. Bd5 {[%emt 0:00:19]} Kh5 {[%emt 0:01:06]} 79. Kd4 {[%emt 0:00:16]} Kh6 {[%emt 0:00:21]} 80. Ke5 {[%emt 0:01:12]} Rg6 {[%emt 0:00:39]} 81. Re2 {[%emt 0:00:54]} Bb4 {[%emt 0:00:32]} 82. Be6 {[%emt 0:00:23]} Rg5+ {[%emt 0:00:23]} 83. Kd4 {[%emt 0:00:44]} Rb5 {[%emt 0:00:27]} 84. Kc4 {[%emt 0:00:06]} Rb6 {[%emt 0:00:34]} 85. Bd7 {[%emt 0:00:06]} Bf8 {[%emt 0:00:34]} 86. Bb5 {[%emt 0:00:25]} Rf6 {[%emt 0:00:25]} 87. Re4 {[%emt 0:01:46]} Kg5 {[%emt 0:00:20]} 88. Re8 {[%emt 0:00:25]} Rf4+ {[%emt 0:00:17]} 89. Kd5 {[%emt 0:00:10]} Rf5+ {[%emt 0:00:53]} 90. Kc6 {[%emt 0:00:03]} Rf6+ {[%emt 0:00:23]} 91. Kc7 {[%emt 0:00:22]} Bb4 {[%emt 0:00:40]} 92. Bc6 {[%emt 0:00:45]} Bc5 {[%emt 0:00:34]} 93. Bd7 {[%emt 0:01:05] Black must now prevent Re5+.} Kf4 {[%emt 0:00:22] Repels Re5} 94. Rg8 {[%emt 0:00:35]} Ke3 {[%emt 0:00:26]} 95. Rg4 {[%emt 0:00:35]} Rf4 {[%emt 0:00:31]} 96. Rg5 {[%emt 0:00:07]} Bb4 {[%emt 0:00:28]} 97. Kc6 {[%emt 0:00:12]} Kd4 {[%emt 0:00:27]} 98. Kb5 {[%emt 0:00:12]} Be7 {[%emt 0:00:38] [#]} 99. Bc6 $2 {[%emt 0:00:53][%mdl 8192] White does not recover from this.} Bxg5 {[%emt 0:00:12] Black mates.} 100. Bd7 {[%emt 0:00:17]} Be7 {[%emt 0:00:13]} 101. Be6 {[%emt 0:00:33]} Rf6 {[%emt 0:00:11]} 102. Bc4 {[%emt 0:00:04]} Bd8 {[%emt 0:00:17]} 103. Ka4 {[%emt 0:00:13]} Kc5 {[%emt 0:00:11]} 104. Bd3 {[%emt 0:00:11]} Rf4+ {[%emt 0:00:41]} 105. Bc4 {[%emt 0:00:05]} Bc7 {[%emt 0:00:14]} 106. Ka3 {[%emt 0:00:06]} Rf2 {[%emt 0:00:10]} 107. Bg8 {[%emt 0:00:11]} Ba5 {[%emt 0:00:09] Weighted Error Value: White=0.05 (flawless) /Black=0.05 (flawless)} 0-1

[Event "12th Tamil Nadu Circuit-IM 2024"]
[Site "Chennai"]
[Date "2024.01.09"]
[Round "1.4"]
[White "Buscara, Sevan"]
[Black "Gochelashvili, David"]
[Result "1/2-1/2"]
[ECO "A00"]
[WhiteElo "2359"]
[BlackElo "2287"]
[Annotator "ChessBase"]
[PlyCount "130"]
[EventDate "2024.01.09"]
[EventType "tourn"]
[EventCountry "IND"]
[SourceTitle "playchess.com"]
[Source "ChessBase"]
[SourceQuality "1"]
[TimeControl "5400+30"]

1. g3 {[%emt 0:00:03]} e5 {[%emt 0:00:16]} 2. Bg2 {[%emt 0:00:23]} d5 {[%emt 0:00:19]} 3. d3 {[%emt 0:00:12]} Nc6 {[%emt 0:01:58]} 4. a3 {[%emt 0:00:09]} g6 {[%emt 0:00:59]} 5. b4 {[%emt 0:04:12]} Bg7 {[%emt 0:00:05]} 6. Bb2 {[%emt 0:00:11]} Be6 {[%emt 0:00:28]} 7. Nd2 {[%emt 0:00:27]} a6 {[%emt 0:01:53]} 8. c4 {[%emt 0:00:52]} Nge7 {[%emt 0:04:00]} 9. Ngf3 {[%emt 0:01:38]} d4 {[%emt 0:02:49]} 10. Nb3 {[%emt 0:05:32]} h6 {[%emt 0:08:56]} 11. O-O {[%emt 0:05:20]} O-O {[%emt 0:20:49]} 12. Qd2 {[%emt 0:11:07]} b6 {[%emt 0:05:43]} 13. e3 {[%emt 0:02:48]} Qd6 {[%emt 0:00:48]} 14. exd4 {[%emt 0:04:44]} exd4 {[%emt 0:00:05]} 15. Rfe1 {[%emt 0:06:39]} g5 {[%emt 0:09:36]} 16. Re4 {[%emt 0:05:13]} Bf5 {[%emt 0:07:34]} 17. Re2 {[%emt 0:01:24]} Ng6 {[%emt 0:07:51]} 18. b5 {[%emt 0:02:17]} axb5 {[%emt 0:05:36]} 19. cxb5 {[%emt 0:01:57]} g4 {[%emt 0:00:30]} 20. Ne1 {[%emt 0:08:27]} Na5 {[%emt 0:00:38]} 21. Nxa5 {[%emt 0:00:54]} Rxa5 {[%emt 0:00:02]} 22. a4 {[%emt 0:00:45]} Rfa8 {[%emt 0:08:26]} 23. Bxa8 {[%emt 0:01:18]} Rxa8 {[%emt 0:00:01]} 24. a5 {[%emt 0:01:50]} Bd7 {[%emt 0:06:43]} 25. axb6 {[%emt 0:03:19]} Rxa1 {[%emt 0:00:03]} 26. b7 {[%emt 0:04:06]} Qb6 {[%emt 0:00:01]} 27. Bxa1 {[%emt 0:00:25]} Qxb7 {[%emt 0:00:02]} 28. Qb4 {[%emt 0:02:30]} Qb6 {[%emt 0:07:43]} 29. Rc2 {[%emt 0:02:44]} Bxb5 {[%emt 0:00:03]} 30. Qc5 {[%emt 0:02:03]} Qa6 {[%emt 0:00:33]} 31. Bxd4 {[%emt 0:01:52]} Bxd3 {[%emt 0:00:02]} 32. Rc1 {[%emt 0:03:37]} Bxd4 {[%emt 0:01:21]} 33. Qxd4 {[%emt 0:00:17]} Bf5 {[%emt 0:00:16]} 34. Ng2 {[%emt 0:01:04]} Qd6 {[%emt 0:00:38]} 35. Qxd6 {[%emt 0:01:04]} cxd6 {[%emt 0:00:01]} 36. Rd1 {[%emt 0:00:11]} Ne5 {[%emt 0:00:01]} 37. Ne1 {[%emt 0:01:50]} Nc4 {[%emt 0:00:04]} 38. Rd4 {[%emt 0:01:35]} Be6 {[%emt 0:00:02]} 39. f3 {[%emt 0:00:31]} gxf3 {[%emt 0:02:24]} 40. Nxf3 {[%emt 0:00:50]} Kg7 {[%emt 0:00:07]} 41. Kf2 {[%emt 0:01:06]} d5 {[%emt 0:00:29]} 42. Rh4 {[%emt 0:00:39]} Nd6 {[%emt 0:00:05]} 43. Nd4 {[%emt 0:00:35]} Kg6 {[%emt 0:00:08]} 44. Ke3 {[%emt 0:01:36]} Nc4+ {[%emt 0:00:31]} 45. Kf4 {[%emt 0:00:10]} Bd7 {[%emt 0:00:01]} 46. Ne2 {[%emt 0:01:01]} f6 {[%emt 0:00:28]} 47. Kf3 {[%emt 0:00:31]} Ne5+ {[%emt 0:00:29]} 48. Ke3 {[%emt 0:00:15]} Kg5 {[%emt 0:01:06]} 49. Nf4 {[%emt 0:00:43]} d4+ {[%emt 0:00:02]} 50. Kf2 {[%emt 0:01:33]} Ng4+ {[%emt 0:00:01]} 51. Kg1 {[%emt 0:00:31]} Kf5 {[%emt 0:02:18]} 52. h3 {[%emt 0:01:48]} Ne5 {[%emt 0:00:01]} 53. Rxh6 {[%emt 0:01:02]} d3 {[%emt 0:00:02]} 54. Kf2 {[%emt 0:00:40]} d2 {[%emt 0:00:27]} 55. Ke2 {[%emt 0:02:01]} Nf3 {[%emt 0:00:02]} 56. Rh5+ {[%emt 0:03:17]} Ke4 {[%emt 0:00:01]} 57. Rd5 {[%emt 0:03:27]} Ba4 {[%emt 0:01:38]} 58. Rxd2 {[%emt 0:00:57]} Bb5+ {[%emt 0:00:23]} 59. Kd1 {[%emt 0:00:12]} Nxd2 {[%emt 0:01:11]} 60. Kxd2 {[%emt 0:00:07]} Kf3 {[%emt 0:00:12]} 61. h4 {[%emt 0:00:24]} Be8 {[%emt 0:00:57]} 62. Ne2 {[%emt 0:01:18]} f5 {[%emt 0:00:10]} 63. Ke1 {[%emt 0:00:22]} Bf7 {[%emt 0:00:10]} 64. Kd2 {[%emt 0:00:39]} Be8 {[%emt 0:00:01]} 65. Ke1 {[%emt 0:00:33]} Bf7 {[%emt 0:00:06]} 1/2-1/2